fUST/lending_fUST_20250716
["ID","MTS","AMOUNT","RATE_DAILY","PERIOD"]
[372384780,1752621040475,-460.0,0.00019178,2]
[372384782,1752621040485,-460.0,0.00019178,2]
[372384783,1752621040496,-460.0,0.00019178,2]
[372384786,1752621040505,-460.0,0.00019178,2]
[372384787,1752621040515,-460.0,0.00019178,2]
[372384790,1752621040525,-460.0,0.00019178,2]
[372384791,1752621040535,-460.0,0.00019178,2]
[372384794,1752621040545,-464.15528915,0.00019178,2]
[372384796,1752621040554,-460.0,0.00019178,2]
[372384798,1752621040564,-460.0,0.00019178,2]
[372384800,1752621040574,-460.0,0.00019178,2]
[372384802,1752621040584,-460.0,0.00019178,2]
[372384803,1752621040594,-460.0,0.00019178,2]
[372384804,1752621040603,-460.0,0.00019178,2]
[372384805,1752621040615,-460.0,0.00019178,2]
[372384806,1752621040626,-460.0,0.00019178,2]
[372384807,1752621040636,-460.0,0.00019178,2]
[372384808,1752621040646,-460.0,0.00019178,2]
[372384809,1752621040656,-460.0,0.00019178,2]
[372384810,1752621040665,-460.0,0.00019178,2]
[372384811,1752621040675,-460.0,0.00019178,2]
[372384812,1752621040684,-460.0,0.00019178,2]
[372384813,1752621040694,-460.0,0.00019178,2]
[372384815,1752621040703,-460.0,0.00019178,2]
[372384817,1752621040713,-348.0533472,0.00019178,2]
[372384819,1752621040723,-460.0,0.00019178,2]
[372384821,1752621040732,-460.0,0.00019178,2]
[372384823,1752621040742,-466.79710821,0.00019178,2]
[372384825,1752621040752,-460.0,0.00019178,2]
[372384828,1752621040761,-460.0,0.00019178,2]
[372384830,1752621040771,-460.0,0.00019178,2]
[372384832,1752621040780,-460.0,0.00019178,2]
[372384834,1752621040790,-188.29,0.00019178,2]
[372384836,1752621040801,-460.0,0.00019178,2]
[372384838,1752621040810,-460.0,0.00019178,2]
[372384840,1752621040820,-460.0,0.00019178,2]
[372384842,1752621040830,-460.0,0.00019178,2]
[372384844,1752621040839,-460.0,0.00019178,2]
[372384846,1752621040848,-460.0,0.00019178,2]
[372384848,1752621040857,-460.0,0.00019178,2]
[372384850,1752621040868,-460.0,0.00019178,2]
[372384852,1752621040880,-460.0,0.00019178,2]
[372384854,1752621040890,-460.0,0.00019178,2]
[372384856,1752621040899,-460.0,0.00019178,2]
[372384858,1752621040908,-869.31,0.00019178,2]
[372384860,1752621040918,-460.0,0.00019178,2]
[372384862,1752621040927,-460.0,0.00019178,2]
[372384864,1752621040937,-460.0,0.00019178,2]
[372384866,1752621040946,-460.0,0.00019178,2]
[372384869,1752621040958,-460.0,0.00019178,2]
[372384871,1752621040968,-460.0,0.00019178,2]
[372384873,1752621040978,-460.0,0.00019178,2]
[372384875,1752621040988,-460.0,0.00019178,2]
[372384877,1752621040997,-460.0,0.00019178,2]
[372384878,1752621041006,-460.0,0.00019178,2]
[372384879,1752621041016,-460.0,0.00019178,2]
[372384880,1752621041028,-460.0,0.00019178,2]
[372384881,1752621041038,-460.0,0.00019178,2]
[372384882,1752621041049,-460.0,0.00019178,2]
[372384883,1752621041058,-460.0,0.00019178,2]
[372384884,1752621041069,-460.0,0.00019178,2]
[372384885,1752621041079,-2713.8,0.00019178,2]
[372384886,1752621041089,-460.0,0.00019178,2]
[372384887,1752621041098,-751.32,0.00019178,2]
[372384888,1752621041108,-460.0,0.00019178,2]
[372384889,1752621041117,-460.0,0.00019178,2]
[372384890,1752621041129,-460.0,0.00019178,2]
[372384891,1752621041138,-460.0,0.00019178,2]
[372384892,1752621041148,-460.0,0.00019178,2]
[372384893,1752621041157,-460.0,0.00019178,2]
[372384894,1752621041167,-460.0,0.00019178,2]
[372384895,1752621041178,-490.87399904,0.00019178,2]
[372384896,1752621041191,-1463.6,0.00019178,2]
[372384897,1752621041201,-460.0,0.00019178,2]
[372384898,1752621041210,-460.0,0.00019178,2]
[372384900,1752621041220,-2578.96,0.00019178,2]
[372384902,1752621041231,-460.0,0.00019178,2]
[372384904,1752621041240,-460.0,0.00019178,2]
[372384906,1752621041250,-460.0,0.00019178,2]
[372384908,1752621041259,-460.0,0.00019178,2]
[372384910,1752621041269,-380.99065413,0.00019178,2]
[372384912,1752621041279,-460.0,0.00019178,2]
[372384914,1752621041288,-460.0,0.00019178,2]
[372384916,1752621041298,-948.44,0.00019178,2]
[372384918,1752621041308,-460.0,0.00019178,2]
[372384920,1752621041318,-234.34134457,0.00019178,2]
[372384922,1752621041328,-460.0,0.00019178,2]
[372384924,1752621041337,-460.0,0.00019178,2]
[372384926,1752621041347,-382.07134587,0.00019178,2]
[372384928,1752621041357,-460.0,0.00019178,2]
[372384930,1752621041366,-460.0,0.00019178,2]
[372384932,1752621041377,-460.0,0.00019178,2]
[372384935,1752621041387,-460.0,0.00019178,2]
[372384937,1752621041396,-460.0,0.00019178,2]
[372384938,1752621041405,-460.0,0.00019178,2]
[372384941,1752621041415,-911.53,0.00019178,2]
[372384943,1752621041424,-460.0,0.00019178,2]
[372384944,1752621041433,-1155.81,0.00019178,2]
[372384947,1752621041443,-460.0,0.00019178,2]
[372384948,1752621041452,-1028.06,0.00019178,2]
[372384951,1752621041461,-460.0,0.00019178,2]
[372384952,1752621041471,-460.0,0.00019178,2]
[372384955,1752621041481,-460.0,0.00019178,2]
[372384965,1752621041584,-576.62,0.00019178,2]
[372384967,1752621041594,-460.0,0.00019178,2]
[372384969,1752621041604,-460.0,0.00019178,2]
[372384971,1752621041613,-460.0,0.00019178,2]
[372384973,1752621041623,-460.0,0.00019178,2]
[372384976,1752621041634,-460.0,0.00019178,2]
[372384977,1752621041644,-461.46006586,0.00019178,2]
[372384980,1752621041653,-460.0,0.00019178,2]
[372384982,1752621041662,-460.0,0.00019178,2]
[372384984,1752621041672,-460.0,0.00019178,2]
[372384985,1752621041682,-460.0,0.00019178,2]
[372384988,1752621041692,-460.0,0.00019178,2]
[372384990,1752621041701,-460.0,0.00019178,2]
[372384992,1752621041711,-460.0,0.00019178,2]
[372384994,1752621041720,-460.0,0.00019178,2]
[372384996,1752621041729,-889.98,0.00019178,2]
[372384998,1752621041738,-460.0,0.00019178,2]
[372385000,1752621041748,-460.0,0.00019178,2]
[372385002,1752621041758,-782.12,0.00019178,2]
[372385004,1752621041767,-460.0,0.00019178,2]
[372385006,1752621041777,-2244.52,0.00019178,2]
[372385008,1752621041787,-460.0,0.00019178,2]
[372385010,1752621041797,-460.0,0.00019178,2]
[372385012,1752621041806,-460.0,0.00019178,2]
[372385014,1752621041815,-460.0,0.00019178,2]
[372385016,1752621041825,-469.14,0.00019178,2]
[372385018,1752621041834,-576.12297178,0.00019178,2]
[372385020,1752621041844,-460.0,0.00019178,2]
[372385022,1752621041853,-465.35,0.00019178,2]
[372385024,1752621041863,-460.0,0.00019178,2]
[372385026,1752621041873,-460.0,0.00019178,2]
[372385028,1752621041885,-460.0,0.00019178,2]
[372385030,1752621041895,-460.0,0.00019178,2]
[372385032,1752621041903,-460.0,0.00019178,2]
[372385034,1752621041913,-460.0,0.00019178,2]
[372385036,1752621041922,-460.0,0.00019178,2]
[372385038,1752621041933,-460.0,0.00019178,2]
[372385040,1752621041942,-269.11330596,0.00019178,2]
[372385042,1752621041951,-460.0,0.00019178,2]
[372385044,1752621041960,-460.0,0.00019178,2]
[372385046,1752621041970,-192.63801615,0.00019178,2]
[372385048,1752621041979,-460.0,0.00019178,2]
[372385050,1752621041989,-460.0,0.00019178,2]
[372385052,1752621041999,-190.444809,0.00019178,2]
[372385054,1752621042008,-666.0,0.00019178,2]
[372385056,1752621042018,-854.07,0.000192,2]
[372385058,1752621042027,-230.55585648,0.00019451,2]
[372385060,1752621042036,-460.0,0.00019452,2]
[372385062,1752621042045,-460.0,0.00019452,2]
[372385064,1752621042055,-390.63025663,0.00019452,2]
[372385066,1752621042064,-460.0,0.00019452,2]
[372385068,1752621042074,-460.0,0.00019452,2]
[372385070,1752621042084,-460.0,0.00019452,2]
[372385072,1752621042093,-379.57548603,0.00019452,2]
[372385074,1752621042103,-460.0,0.00019452,2]
[372385076,1752621042112,-460.0,0.00019452,2]
[372385078,1752621042121,-460.0,0.00019452,2]
[372385080,1752621042134,-460.0,0.00019452,2]
[372385083,1752621042143,-460.0,0.00019452,2]
[372385085,1752621042153,-460.0,0.00019452,2]
[372385087,1752621042162,-460.0,0.00019452,2]
[372385089,1752621042172,-460.0,0.00019452,2]
[372385091,1752621042182,-460.0,0.00019452,2]
[372385093,1752621042193,-460.0,0.00019452,2]
[372385095,1752621042205,-460.0,0.00019452,2]
[372385097,1752621042215,-460.0,0.00019452,2]
[372385099,1752621042224,-461.68689152,0.00019452,2]
[372385101,1752621042233,-460.0,0.00019452,2]
[372385102,1752621042244,-460.0,0.00019452,2]
[372385105,1752621042254,-463.77234075,0.00019452,2]
[372385106,1752621042263,-460.0,0.00019452,2]
[372385108,1752621042273,-460.0,0.00019452,2]
[372385110,1752621042282,-360.87122314,0.00019452,2]
[372385112,1752621042291,-460.0,0.00019452,2]
[372385114,1752621042300,-460.0,0.00019452,2]
[372385116,1752621042310,-460.0,0.00019452,2]
[372385118,1752621042319,-460.0,0.00019452,2]
[372385120,1752621042329,-460.0,0.00019452,2]
[372385122,1752621042338,-460.0,0.00019452,2]
[372385124,1752621042347,-460.0,0.00019452,2]
[372385126,1752621042357,-460.0,0.00019452,2]
[372385128,1752621042366,-507.78733037,0.00019452,2]
[372385130,1752621042377,-460.0,0.00019452,2]
[372385133,1752621042387,-460.0,0.00019452,2]
[372385135,1752621042396,-460.0,0.00019452,2]
[372385137,1752621042406,-460.0,0.00019452,2]
[372385139,1752621042415,-460.0,0.00019452,2]
[372385141,1752621042425,-460.0,0.00019452,2]
[372385143,1752621042434,-460.0,0.00019452,2]
[372385145,1752621042444,-460.0,0.00019452,2]
[372385147,1752621042453,-460.0,0.00019452,2]
[372385149,1752621042463,-460.0,0.00019452,2]
[372385151,1752621042473,-460.0,0.00019452,2]
[372385153,1752621042483,-460.0,0.00019452,2]
[372385155,1752621042493,-460.0,0.00019452,2]
[372385157,1752621042502,-460.0,0.00019452,2]
[372385159,1752621042511,-460.0,0.00019452,2]
[372385161,1752621042521,-460.0,0.00019452,2]
[372385163,1752621042531,-460.0,0.00019452,2]
[372385165,1752621042540,-460.0,0.00019452,2]
[372385167,1752621042550,-460.0,0.00019452,2]
[372385169,1752621042559,-460.0,0.00019452,2]
[372385171,1752621042570,-460.0,0.00019452,2]
[372385173,1752621042580,-460.0,0.00019452,2]
[372385175,1752621042589,-460.0,0.00019452,2]
[372385177,1752621042599,-460.0,0.00019452,2]
[372385179,1752621042608,-460.0,0.00019452,2]
[372385181,1752621042618,-460.0,0.00019452,2]
[372385183,1752621042629,-460.0,0.00019452,2]
[372385185,1752621042639,-460.0,0.00019452,2]
[372385187,1752621042648,-460.0,0.00019452,2]
[372385189,1752621042657,-460.0,0.00019452,2]
[372385191,1752621042667,-460.0,0.00019452,2]
[372385193,1752621042676,-460.0,0.00019452,2]
[372385195,1752621042687,-460.0,0.00019452,2]
[372385197,1752621042696,-460.0,0.00019452,2]
[372385199,1752621042705,-460.0,0.00019452,2]
[372385201,1752621042715,-460.0,0.00019452,2]
[372385203,1752621042724,-460.0,0.00019452,2]
[372385205,1752621042733,-460.0,0.00019452,2]
[372385207,1752621042743,-460.0,0.00019452,2]
[372385209,1752621042752,-460.0,0.00019452,2]
[372385211,1752621042763,-460.0,0.00019452,2]
[372385213,1752621042773,-460.0,0.00019452,2]
[372385215,1752621042782,-460.0,0.00019452,2]
[372385217,1752621042791,-593.46386413,0.00019452,2]
[372385219,1752621042801,-461.22322508,0.00019452,2]
[372385221,1752621042810,-460.0,0.00019452,2]
[372385223,1752621042820,-460.0,0.00019452,2]
[372385225,1752621042829,-368.22427387,0.00019452,2]
[372385227,1752621042839,-460.0,0.00019452,2]
[372385229,1752621042848,-460.0,0.00019452,2]
[372385231,1752621042858,-460.0,0.00019452,2]
[372385233,1752621042867,-460.0,0.00019452,2]
[372385235,1752621042877,-869.31,0.00019452,2]
[372385237,1752621042886,-460.0,0.00019452,2]
[372385239,1752621042896,-460.0,0.00019452,2]
[372385241,1752621042905,-460.0,0.00019452,2]
[372385243,1752621042914,-460.0,0.00019452,2]
[372385245,1752621042924,-460.0,0.00019452,2]
[372385247,1752621042933,-2713.8,0.00019452,2]
[372385249,1752621042942,-460.0,0.00019452,2]
[372385253,1752621042952,-751.32,0.00019452,2]
[372385256,1752621042962,-460.0,0.00019452,2]
[372385258,1752621042971,-1463.6,0.00019452,2]
[372385259,1752621042981,-460.0,0.00019452,2]
[372385262,1752621042998,-2578.96,0.00019452,2]
[372385264,1752621043008,-460.0,0.00019452,2]
[372385266,1752621043018,-460.0,0.00019452,2]
[372385268,1752621043028,-460.0,0.00019452,2]
[372385270,1752621043038,-460.0,0.00019452,2]
[372385272,1752621043047,-948.44,0.00019452,2]
[372385274,1752621043057,-460.0,0.00019452,2]
[372385276,1752621043068,-460.0,0.00019452,2]
[372385278,1752621043080,-200.82605146,0.00019452,2]
[372385279,1752621043089,-218.43445313,0.00019452,2]
[372385281,1752621043099,-460.0,0.00019452,2]
[372385284,1752621043108,-228.25,0.00019452,2]
[372385286,1752621043118,-911.53,0.00019452,2]
[372385288,1752621043127,-1155.81,0.00019452,2]
[372385289,1752621043138,-460.0,0.00019452,2]
[372385292,1752621043147,-1028.06,0.00019452,2]
[372385294,1752621043157,-384.30151361,0.00019452,2]
[372385296,1752621043166,-461.88,0.00019452,2]
[372385298,1752621043175,-460.0,0.00019452,2]
[372385299,1752621043185,-423.39647143,0.00019452,2]
[372385302,1752621043196,-384.29049382,0.00019452,2]
[372385304,1752621043207,-256.29115431,0.00019452,2]
[372385306,1752621043216,-460.0,0.00019452,2]
[372385308,1752621043225,-460.0,0.00019452,2]
[372385310,1752621043235,-889.98,0.00019452,2]
[372385312,1752621043245,-307.14172228,0.00019452,2]
[372385314,1752621043254,-782.12,0.00019452,2]
[372385316,1752621043263,-2244.52,0.00019452,2]
[372385318,1752621043273,-460.0,0.00019452,2]
[372385320,1752621043284,-469.14,0.00019452,2]
[372385322,1752621043294,-460.0,0.00019452,2]
[372385324,1752621043304,-465.35,0.00019452,2]
[372385326,1752621043313,-460.0,0.00019452,2]
[372385328,1752621043323,-460.0,0.00019452,2]
[372385330,1752621043333,-460.0,0.00019452,2]
[372385332,1752621043342,-460.0,0.00019452,2]
[372385334,1752621043353,-460.0,0.00019452,2]
[372385336,1752621043362,-460.0,0.00019452,2]
[372385339,1752621043371,-460.0,0.00019452,2]
[372385342,1752621043381,-460.0,0.00019452,2]
[372385345,1752621043391,-500.0,0.00019473,2]
[372385348,1752621043400,-207.7516746,0.00019473,2]
[372385352,1752621043410,-354.40814359,0.00019473,2]
[372385356,1752621043419,-500.0,0.00019473,2]
[372385359,1752621043429,-358.01440364,0.00019626,2]
[372385364,1752621043439,-460.0,0.00019726,2]
[372385369,1752621043448,-460.0,0.00019726,2]
[372385374,1752621043458,-460.0,0.00019726,2]
[372385378,1752621043467,-460.0,0.00019726,2]
[372385381,1752621043477,-460.0,0.00019726,2]
[372385384,1752621043486,-460.0,0.00019726,2]
[372385388,1752621043495,-460.0,0.00019726,2]
[372385392,1752621043507,-460.0,0.00019726,2]
[372385396,1752621043516,-460.0,0.00019726,2]
[372385400,1752621043526,-460.0,0.00019726,2]
[372385404,1752621043536,-379.23569406,0.00019726,2]
[372385408,1752621043545,-460.0,0.00019726,2]
[372385411,1752621043554,-460.0,0.00019726,2]
[372385414,1752621043563,-460.0,0.00019726,2]
[372385417,1752621043573,-460.0,0.00019726,2]
[372385421,1752621043583,-460.0,0.00019726,2]
[372385424,1752621043593,-460.0,0.00019726,2]
[372385427,1752621043602,-174.05,0.00019726,2]
[372385430,1752621043612,-460.0,0.00019726,2]
[372385432,1752621043621,-161.3,0.00019726,2]
[372385434,1752621043631,-151.33233934,0.00019726,2]
[372385436,1752621043640,-460.0,0.00019726,2]
[372385438,1752621043650,-460.0,0.00019726,2]
[372385440,1752621043658,-460.0,0.00019726,2]
[372385443,1752621043671,-460.0,0.00019726,2]
[372385445,1752621043681,-460.0,0.00019726,2]
[372385447,1752621043690,-460.0,0.00019726,2]
[372385449,1752621043700,-460.0,0.00019726,2]
[372385451,1752621043709,-460.0,0.00019726,2]
[372385453,1752621043719,-590.14,0.00019726,2]
[372385455,1752621043728,-460.0,0.00019726,2]
[372385457,1752621043738,-224.01,0.00019726,2]
[372385459,1752621043747,-460.0,0.00019726,2]
[372385461,1752621043757,-460.0,0.00019726,2]
[372385463,1752621043766,-460.0,0.00019726,2]
[372385465,1752621043776,-869.31,0.00019726,2]
[372385467,1752621043785,-460.0,0.00019726,2]
[372385469,1752621043795,-460.0,0.00019726,2]
[372385471,1752621043804,-460.0,0.00019726,2]
[372385473,1752621043814,-290.46240012,0.00019726,2]
[372385475,1752621043824,-460.0,0.00019726,2]
[372385477,1752621043833,-2713.8,0.00019726,2]
[372385479,1752621043843,-460.0,0.00019726,2]
[372385481,1752621043852,-751.32,0.00019726,2]
[372385483,1752621043861,-460.0,0.00019726,2]
[372385485,1752621043871,-1463.6,0.00019726,2]
[372385487,1752621043882,-2578.96,0.00019726,2]
[372385489,1752621043891,-242.66,0.00019726,2]
[372385491,1752621043900,-460.0,0.00019726,2]
[372385493,1752621043912,-948.44,0.00019726,2]
[372385495,1752621043922,-460.0,0.00019726,2]
[372385497,1752621043931,-460.0,0.00019726,2]
[372385499,1752621043940,-911.53,0.00019726,2]
[372385501,1752621043950,-1155.81,0.00019726,2]
[372385503,1752621043959,-1028.06,0.00019726,2]
[372385505,1752621043969,-495.04,0.00019726,2]
[372385507,1752621043978,-335.75,0.00019726,2]
[372385509,1752621043987,-460.0,0.00019726,2]
[372385511,1752621043997,-889.98,0.00019726,2]
[372385513,1752621044006,-782.12,0.00019726,2]
[372385515,1752621044015,-2244.52,0.00019726,2]
[372385517,1752621044024,-275.82,0.00019726,2]
[372385519,1752621044033,-469.14,0.00019726,2]
[372385521,1752621044042,-460.0,0.00019726,2]
[372385523,1752621044052,-465.35,0.00019726,2]
[372385525,1752621044062,-460.0,0.00019726,2]
[372385527,1752621044071,-460.0,0.00019726,2]
[372385539,1752621044175,-460.0,0.00019726,2]
[372385541,1752621044186,-460.0,0.00019726,2]
[372385544,1752621044200,-461.5729828,0.00019878,2]
[372385546,1752621044210,-226.57457095,0.000199,2]
[372385548,1752621044220,-460.0,0.0002,2]
[372385550,1752621044230,-460.0,0.0002,2]
[372385552,1752621044241,-460.0,0.0002,2]
[372385554,1752621044250,-460.0,0.0002,2]
[372385556,1752621044260,-460.0,0.0002,2]
[372385558,1752621044270,-460.0,0.0002,2]
[372385560,1752621044280,-460.0,0.0002,2]
[372385562,1752621044290,-460.0,0.0002,2]
[372385564,1752621044299,-585.19027895,0.0002,2]
[372385566,1752621044309,-460.0,0.0002,2]
[372385568,1752621044319,-456.51,0.0002,2]
[372385571,1752621044329,-460.0,0.0002,2]
[372385573,1752621044338,-460.0,0.0002,2]
[372385575,1752621044348,-460.0,0.0002,2]
[372385577,1752621044358,-501.6,0.0002,2]
[372385579,1752621044368,-204.08056748,0.0002,2]
[372385580,1752621044378,-460.0,0.0002,2]
[372385583,1752621044389,-221.13969605,0.0002,2]
[372385585,1752621044398,-869.31,0.0002,2]
[372385587,1752621044408,-460.0,0.0002,2]
[372385589,1752621044418,-460.0,0.0002,2]
[372385591,1752621044427,-460.0,0.0002,2]
[372385593,1752621044436,-460.0,0.0002,2]
[372385595,1752621044446,-2713.8,0.0002,2]
[372385597,1752621044455,-460.0,0.0002,2]
[372385599,1752621044464,-751.32,0.0002,2]
[372385601,1752621044473,-460.0,0.0002,2]
[372385603,1752621044483,-1463.6,0.0002,2]
[372385605,1752621044492,-2578.96,0.0002,2]
[372385607,1752621044501,-460.0,0.0002,2]
[372385609,1752621044511,-948.44,0.0002,2]
[372385611,1752621044521,-460.0,0.0002,2]
[372385613,1752621044530,-460.0,0.0002,2]
[372385615,1752621044540,-911.53,0.0002,2]
[372385617,1752621044549,-1155.81,0.0002,2]
[372385619,1752621044558,-1028.06,0.0002,2]
[372385621,1752621044568,-460.0,0.0002,2]
[372385623,1752621044577,-889.98,0.0002,2]
[372385625,1752621044586,-782.12,0.0002,2]
[372385627,1752621044596,-2244.52,0.0002,2]
[372385629,1752621044605,-469.14,0.0002,2]
[372385631,1752621044615,-460.0,0.0002,2]
[372385633,1752621044624,-465.35,0.0002,2]
[372385635,1752621044635,-460.0,0.0002,2]
[372385637,1752621044644,-460.0,0.0002,2]
[372385639,1752621044653,-460.0,0.0002,2]
[372385641,1752621044663,-460.0,0.0002,2]
[372385643,1752621044672,-1000.0,0.00020021,2]
[372385645,1752621044681,-297.635342,0.00020187,2]
[372385647,1752621044691,-460.0,0.00020273,2]
[372385649,1752621044700,-460.0,0.00020273,2]
[372385651,1752621044709,-460.0,0.00020273,2]
[372385653,1752621044719,-155.03,0.00020273,2]
[372385655,1752621044728,-460.0,0.00020273,2]
[372385657,1752621044737,-869.31,0.00020273,2]
[372385659,1752621044747,-460.0,0.00020273,2]
[372385661,1752621044756,-460.0,0.00020273,2]
[372385663,1752621044766,-2713.8,0.00020273,2]
[372385665,1752621044775,-460.0,0.00020273,2]
[372385667,1752621044785,-751.32,0.00020273,2]
[372385669,1752621044794,-460.0,0.00020273,2]
[372385671,1752621044803,-1463.6,0.00020273,2]
[372385673,1752621044813,-2578.96,0.00020273,2]
[372385675,1752621044824,-460.0,0.00020273,2]
[372385677,1752621044834,-948.44,0.00020273,2]
[372385679,1752621044844,-460.0,0.00020273,2]
[372385681,1752621044853,-460.0,0.00020273,2]
[372385683,1752621044863,-911.53,0.00020273,2]
[372385685,1752621044872,-1155.81,0.00020273,2]
[372385687,1752621044883,-1028.06,0.00020273,2]
[372385689,1752621044893,-460.0,0.00020273,2]
[372385691,1752621044902,-889.98,0.00020273,2]
[372385693,1752621044912,-782.12,0.00020273,2]
[372385695,1752621044921,-469.14,0.00020273,2]
[372385697,1752621044931,-460.0,0.00020273,2]
[372385699,1752621044940,-465.35,0.00020273,2]
[372385701,1752621044949,-460.0,0.00020273,2]
[372385702,1752621044958,-460.0,0.00020273,2]
[372385703,1752621044968,-293.03,0.00020273,2]
[372385704,1752621044977,-1977.15,0.000203,2]
[372385705,1752621044987,-160.0,0.00020471,2]
[372385706,1752621044997,-322.76,0.00020538,3]
[372385707,1752621045007,-460.0,0.00020547,2]
[372385708,1752621045016,-451.96,0.00020547,2]
[372385709,1752621045026,-869.31,0.00020547,2]
[372385710,1752621045035,-460.0,0.00020547,2]
[372385711,1752621045044,-460.0,0.00020547,2]
[372385712,1752621045054,-2713.8,0.00020547,2]
[372385713,1752621045064,-462.38,0.00020547,2]
[372385714,1752621045073,-751.32,0.00020547,2]
[372385715,1752621045083,-460.0,0.00020547,2]
[372385717,1752621045092,-1463.6,0.00020547,2]
[372385719,1752621045101,-2578.96,0.00020547,2]
[372385721,1752621045111,-460.0,0.00020547,2]
[372385723,1752621045121,-948.44,0.00020547,2]
[372385725,1752621045141,-460.0,0.00020547,2]
[372385727,1752621045150,-460.0,0.00020547,2]
[372385729,1752621045160,-911.53,0.00020547,2]
[372385731,1752621045169,-1155.81,0.00020547,2]
[372385733,1752621045179,-1028.06,0.00020547,2]
[372385734,1752621045188,-460.0,0.00020547,2]
[372385737,1752621045200,-889.98,0.00020547,2]
[372385738,1752621045210,-782.12,0.00020547,2]
[372385740,1752621045220,-469.14,0.00020547,2]
[372385742,1752621045230,-460.0,0.00020547,2]
[372385744,1752621045241,-465.35,0.00020547,2]
[372385746,1752621045250,-542.33,0.00020547,2]
[372385748,1752621045260,-460.0,0.00020547,2]
[372385750,1752621045270,-160.0,0.00020548,2]
[372385752,1752621045281,-160.0,0.00020548,2]
[372385754,1752621045291,-520.84375,0.00020548,2]
[372385756,1752621045301,-838.84061749,0.00020548,2]
[372385758,1752621045310,-230.76969291,0.00020548,2]
[372385760,1752621045320,-215.50840239,0.00020549,2]
[372385762,1752621045331,-288.0,0.00020676,2]
[372385764,1752621045341,-312.0,0.00020764,2]
[372385766,1752621045350,-420.0,0.00020764,2]
[372385768,1752621045360,-461.5729828,0.00020801,2]
[372385771,1752621045370,-604.28,0.00020821,2]
[372385772,1752621045382,-869.31,0.00020821,2]
[372385774,1752621045393,-460.0,0.00020821,2]
[372385777,1752621045403,-320.48,0.00020821,2]
[372385778,1752621045413,-2713.8,0.00020821,2]
[372385780,1752621045423,-751.32,0.00020821,2]
[372385782,1752621045433,-460.0,0.00020821,2]
[372385784,1752621045443,-1463.6,0.00020821,2]
[372385786,1752621045452,-2578.96,0.00020821,2]
[372385788,1752621045462,-460.0,0.00020821,2]
[372385790,1752621045471,-948.44,0.00020821,2]
[372385793,1752621045481,-270.3214976,0.00020821,2]
[372385794,1752621045491,-460.0,0.00020821,2]
[372385797,1752621045501,-911.53,0.00020821,2]
[372385798,1752621045510,-1155.81,0.00020821,2]
[372385800,1752621045520,-1028.06,0.00020821,2]
[372385803,1752621045530,-189.74,0.00020821,2]